Cogmind - Beta 16 @@@ ROGUE MODE // 2025.10.24 @ 18:43:42 Player: Zaros426 Result: Destroyed by G-34 Mercenary with Small Laser Performance ------------- Evolutions (0) 0 Regions Visited (1) 200 Robots Destroyed (19) 95 Value Destroyed (253) 253 Prototype IDs (0) 0 Alien Tech Used (0) 0 Bonus (0) 0 TOTAL SCORE: 548 Bonus ------- None Cogmind --------- Core Integrity 0/250 Matter 192/300 Energy 250/250 System Corruption 0% Temperature Cool (50) Movement Treading (160) Location -10/Materials Parts ------- > --- POWER (1) -------- Ion Engine > --- PROPULSION (2) --- Light Treads > --- UTILITY (2) ------ Improved Targeting Computer > --- WEAPON (2) ------- Small Laser Light Assault Rifle > --- INVENTORY (5) ---- Huge Storage Unit Structural Scanner Small Laser Peak State ------------ > --- POWER ------------ Ion Engine > --- PROPULSION ------- Light Treads Light Treads > --- UTILITY ---------- Seismic Detector Improved Targeting Computer > --- WEAPON ----------- EM Pulse Gun Light Assault Rifle > --- INVENTORY -------- Huge Storage Unit Structural Scanner Light Assault Rifle [Rating: 8] Favorites ----------- Power Ion Engine Engine Ion Engine Propulsion Light Treads Treads Light Treads Utility Seismic Detector Device Seismic Detector Processor Improved Targeting Computer Weapon Light Assault Rifle Energy Gun EM Pulse Gun Ballistic Gun Light Assault Rifle Special Weapon Mining Laser Build | -11 -10 ------- Run | Yrd Mat Slots Evolved . | . . Power . | . . Propulsion . | . . Utility . | . . Weapon . | . . Parts Attached 15 | 6 9 Power 1 | . 1 Engine 1 | . 1 Core . | . . Reactor . | . . Propulsion 4 | 2 2 Treads 4 | 2 2 Leg . | . . Wheel . | . . Hover . | . . Flight . | . . Utility 4 | 2 2 Device 2 | 2 . Storage . | . . Processor 2 | . 2 Hackware . | . . Protection . | . . Artifact . | . . Weapon 6 | 2 4 Energy Gun 2 | . 2 Energy Cannon . | . . Ballistic Gun 3 | 2 1 Ballistic Cannon . | . . Launcher . | . . Special Weapon 1 | . 1 Impact Weapon . | . . Slashing Weapon . | . . Piercing Weapon . | . . Special Melee Weapon . | . . Unidentified Prototypes . | . . Parts Lost 8 | . 8 Power . | . . Propulsion 3 | . 3 Utility 1 | . 1 Weapon 4 | . 4 Highest Loss Streak 7 | . 7 To Critical Strikes . | . . Average Backups 4 | 2 4 Power . | . . Propulsion . | . . Utility 1 | . 1 Weapon 1 | 1 1 Tool/Special . | . . Unused Backups 4 | . 4 Power . | . . Propulsion . | . . Utility 3 | . 3 Weapon 1 | . 1 Tool/Special . | . . Average Slot Usage (%) 76 | . 76 Engine 2 | . 2 Treads 25 | . 25 Device 12 | . 12 Processor 9 | . 9 Energy Gun 2 | . 2 Ballistic Gun 21 | . 21 Special Weapon 1 | . 1 Peak Build Rating 8 | 6 8 Average Rating 5 | 3 5 On Entrance 2 | . 5 Avg Prop Armor Cover (%) 28 | 31 27 Naked Turns . | . . Heaviest Build 9 | 3 9 Greatest Support 40 | 3 40 Greatest Overweight (x) 1 | . 1 Average Overweight (x) . | . . Largest Inventory Capacity 5 | 5 5 Average Capacity 5 | 5 5 Most Carried 5 | 4 5 Average Carried 4 | 2 4 Final Capacity 5 | 5 5 Final Carried 4 | 4 3 Class Distribution -------------------- 100% | Mutant Dominant Class ---------------- Mutant | -10/Materials Resources | -11 -10 ----------- Run | Yrd Mat Matter Collected 370 | 280 90 Remotely . | . . Salvage Created 473 | 136 337 Parts 52 | 12 40 Haulers Intercepted 1 | . 1 Recyclers Shooed . | . . Parts Field Recycled . | . . Retrieved Matter . | . . Parts Self-Destructed . | . . Prevented . | . . Parts Restored . | . . Kills | -11 -10 ------- Run | Yrd Mat Combat Hostiles Destroyed 12 | . 12 Guns 12 | . 12 Classes Destroyed 6 | 2 4 Worker 1 | . 1 Tunneler 4 | 4 . Hauler 1 | . 1 Recycler 1 | 1 . Swarmer 8 | . 8 Grunt 4 | . 4 Best Kill Streak 5 | 5 4 Combat Bots Only 3 | . 3 Max Kills in Single Turn 1 | 1 1 Gunslinging . | . . Exploded . | . . Melee . | . . Uniques/NPCs Destroyed . | . . Combat | -11 -10 -------- Run | Yrd Mat Hostile Shots Fired 158 | . 158 Missed 42 | . 42 Hits 116 | . 116 Projectile 116 | . 116 Critical Strikes 1 | . 1 Damage Taken 1077 | . 1077 Core 250 | . 250 Absorbed by Shields . | . . Core Remaining (%) 100 | 100 . Volleys Fired 61 | 10 51 Largest 2 | 2 2 Hottest 100 | 40 100 Shots Fired 100 | 20 80 Gun 95 | 20 75 Cannon . | . . Launcher . | . . Special 5 | . 5 Kinetic 78 | 20 58 Thermal 8 | . 8 Explosive . | . . Electromagnetic 14 | . 14 Robot Hit Streak 12 | 5 12 Robot Miss Streak 4 | 2 4 Penetration Max . | . . Secondary Targets . | . . Shots Hit Robots 59 | 13 46 Core Hits 30 | 8 22 Critical Kills . | . . Critical Parts Destroyed . | . . Critical Strikes . | . . Melee Attacks . | . . Impact . | . . Slashing . | . . Piercing . | . . Sneak Attacks . | . . Combat Hostiles . | . . Follow-up Attacks . | . . Damage Inflicted 552 | 115 437 Guns 552 | 115 437 Cannons . | . . Explosions . | . . Melee . | . . Ramming . | . . Kinetic 392 | 115 277 Thermal 34 | . 34 Explosive . | . . Electromagnetic 126 | . 126 Impact . | . . Slashing . | . . Piercing . | . . Highest Corruption . | . . Average Corruption . | . . Corruption Purged . | . . Corruption Blocked . | . . Overload Shots . | . . Overflow Damage . | . . Projectiles . | . . Explosions . | . . Melee . | . . Knockbacks . | . . Impact . | . . Kinetic . | . . Secondary . | . . Self-Inflicted Damage . | . . Shots . | . . Rammed . | . . Targets Rammed . | . . Kicked . | . . Crushed . | . . Highest Temperature 52 | . 52 Average Temperature 17 | . 17 Received Heat Transfer 306 | . 306 Siege Activations . | . . Martial Activations . | . . Shielding Activations . | . . Robots Disrupted . | . . Combat Hostiles . | . . Robots Corrupted . | . . Combat Hostiles . | . . Parts Fried . | . . Impact Corruptions . | . . Robots Melted . | . . Combat Hostiles . | . . Parts Melted . | . . Heat Transferred 75 | . 75 Parts Sabotaged . | . . Parts Stolen . | . . Parts Stripped . | . . Power Chain Reactions . | . . Alert | -11 -10 ------- Run | Yrd Mat Maximum Alert Level 1 | . 1 Low Security (%) 90 | 100 88 Level 1 9 | . 11 Level 2 . | . . Level 3 . | . . Level 4 . | . . Level 5 . | . . High Security . | . . Max Security . | . . Peak Influence 334 | 10 334 Initial 3 | . 3 Average 91 | 2 106 Influence Increases 603 | 25 578 Destroy 0b10 Robot/C 240 | . 240 Destroy 0b10 Robot/NC 35 | 25 10 Destroy Leader 52 | . 52 Successful Hack 17 | . 17 Select Force Hacks 60 | . 60 Destroy Structure 4 | . 4 Lose Combat Pursuer 195 | . 195 Influence Decreases 269 | 20 249 Entered New Map 2 | . 2 Time Decay 187 | 20 167 Lost Part 80 | . 80 Squads Dispatched 5 | . 5 Investigation 5 | . 5 Extermination . | . . Reinforcement . | . . Assault . | . . Garrison . | . . Intercept . | . . Searches Triggered . | . . Construction Impeded . | . . Haulers Reinforced . | . . Active Scanning Responses . | . . Cargo Convoy Interrupts . | . . Stealth | -11 -10 --------- Run | Yrd Mat Distress Signals 2 | . 2 Communications Jammed . | . . Distress Signals . | . . Times Spotted 32 | . 32 Peak Tracking Total 11 | . 11 Tactical Retreats 5 | . 5 Traps | -11 -10 ------- Run | Yrd Mat Traps Triggered 2 | . 2 Indirectly . | . . Trap Hack Attempts . | . . Triggered . | . . Disarmed . | . . Reprogrammed . | . . Reused . | . . Traps Extracted . | . . Installed . | . . Triggered . | . . Machines | -11 -10 ---------- Run | Yrd Mat Machines Disabled . | . . Max in Single Turn . | . . Machines Repaired . | . . Machines Dismantled . | . . Machines Sabotaged . | . . Overloaded Fab Kills . | . . Hacking | -11 -10 --------- Run | Yrd Mat Machines Accessed 9 | . 9 Terminals 7 | . 7 Fabricators . | . . Repair Stations . | . . Recycling Units 2 | . 2 Scanalyzers . | . . Garrison Access . | . . Total Hacks 22 | . 22 Successful 13 | . 13 Failed 9 | . 9 Catastrophic 1 | . 1 Database Lockouts . | . . Manual 18 | . 18 Terminals 20 | . 20 Fabricators . | . . Repair Stations . | . . Recycling Units 2 | . 2 Scanalyzers . | . . Garrison Access . | . . Terminal Hacks 4 | . 4 Robot Analysis 2 | . 2 Locate Traps 1 | . 1 Hauler Manifests 1 | . 1 Fabricator Hacks . | . . Repair Station Hacks . | . . Recycling Unit Hacks . | . . Scanalyzer . | . . Garrison Access Hacks . | . . Unauthorized Hacks 9 | . 9 Terminals 7 | . 7 Botnet 2 | . 2 Skim 5 | . 5 Fabricators . | . . Repair Stations . | . . Recycling Units 2 | . 2 Tunnel 2 | . 2 Scanalyzers . | . . Garrison Access . | . . Data Cores Recovered . | . . Used . | . . Hacking Detections 7 | . 7 Full Trace Events 1 | . 1 Feedback Events . | . . Feedback Blocked . | . . Robot Schematics Acquired . | . . Robots Built . | . . Authchips . | . . Time . | . . Total Robot Build Rating . | . . Part Schematics Acquired . | . . Parts Built . | . . Authchips . | . . Time . | . . Total Part Build Rating . | . . Part Studies Acquired . | . . Parts Repaired . | . . Time . | . . Parts Recycled . | . . Recycled Matter . | . . Retrieved Matter . | . . Retrieved Components . | . . Parts Scanalyzed . | . . Part Schematics Acquired . | . . Parts Damaged . | . . Bothacking | -11 -10 ------------ Run | Yrd Mat Used RIF Installer . | . . Robots Hacked . | . . Non-combat . | . . Combat . | . . Robot Hacks Applied . | . . Relay Couplers Released . | . . Fabnet Peak Effective % . | . . Robots Rewired . | . . Allies Hacked . | . . Hacks Repelled . | . . Allies | -11 -10 -------- Run | Yrd Mat Total Allies . | . . Largest Group . | . . Highest-Rated Group . | . . Highest-Rated Ally . | . . Total Orders . | . . Ally Attacks . | . . Total Damage . | . . Kills . | . . Allies Corrupted . | . . Allies Melted . | . . Intel | -11 -10 ------- Run | Yrd Mat Active Infowar (turns) 327 | 27 300 Seismic 327 | 27 300 Robot Analysis Total 2 | . 2 Derelict Logs Recovered . | . . Drone Launches . | . . Drone Recoveries . | . . Exploration | -11 -10 ------------- Run | Yrd Mat Turns Passed 499 | 71 428 Spaces Moved 544 | 56 488 Core 535 | 56 479 Treads 9 | . 9 Legs . | . . Wheels . | . . Hover . | . . Flight . | . . Fastest Speed 50 | 50 50 Average Speed 52 | 50 52 Slowest Speed 160 | 50 160 Overloaded Moves . | . . Propulsion Burnouts . | . . Robots Hopped . | . . Potential Cave-ins . | . . Cave-ins Triggered . | . . Exploration Rate (%) 43 | 3 84 Regions Visited 1 Branch Regions . Pre-discovered Areas 2 | . 2 Known Exits Taken . | . . Unknown Exits Taken 1 | 1 . Scrap Searched . | . . Spaces Dug 3 | . 3 Terrain Destroyed 5 | . 5 Melee . | . . Projectile 5 | . 5 AOE . | . . Terrain Rammed . | . . Walls Destroyed . | . . Machines Disabled . | . . Actions | -11 -10 --------- Run | Yrd Mat Total 657 | 80 577 Wait 15 | 2 13 Move 543 | 55 488 Hop . | . . Pick Up 9 | 5 4 Fast Attach 11 | 6 5 Attach 4 | . 4 Detach 1 | . 1 Swap 9 | . 9 Drop 4 | 2 2 Fire 61 | 10 51 Melee . | . . Ram . | . . Kick . | . . Crush . | . . Escape Stasis . | . . Rewire . | . . Trap . | . . Miscellaneous . | . . Route ------- -11/Scrapyard -10/Materials (discovered 6 exits: *Mat x3 / [*Min x2] / Sub) History --------- Turn | Location | Event 5 | -11/Scrapyard | Discovered new exit (range 15) 72 | -11/Scrapyard | Entered Materials 112 | -10/Materials | Discovered new exit (range 7) 129 | -10/Materials | Discovered new exit (range 13) 180 | -10/Materials | Discovered new exit (range 8) 223 | -10/Materials | Identified exit to Subcaves 223 | -10/Materials | Identified exit to Materials 226 | -10/Materials | Discovered exit to Materials (range 13) 309 | -10/Materials | Build established: Mutant 344 | -10/Materials | Learned 2 Materials zone layouts 368 | -10/Materials | Learned location of 1 exit from Storage 423 | -10/Materials | Core integrity fell below 50% 464 | -10/Materials | Core integrity fell below 20% 500 | -10/Materials | Destroyed by G-34 Mercenary with Small Laser Last Messages --------------- 00432_ Triggered Alarm Trap. 00432_ An alarm sounds. 00432_ ALERT: Alarm triggered, dispatching investigation squad. 00435_ Lgt. Assault Rifle destroyed. 00442_ Acquired 50 matter. 00443_ Acquired Lgt. Treads. 00443_ Seismic Detector destroyed. 00445_ Lgt. Assault Rifle destroyed. 00446_ Acquired Lgt. Treads. 00448_ S-10 Pest destroyed. 00448_ U-05 Engineer lays Concrete. 00449_ S-10 Pest destroyed. 00450_ U-05 Engineer lays Concrete. 00450_ G-34 Mercenary destroyed. 00457_ EM Pulse Gun destroyed. 00462_ Acquired Lgt. Assault Rifle. 00474_ G-34 Mercenary destroyed. 00486_ Lgt. Treads destroyed. 00488_ Acquired Sml. Laser. 00495_ G-34 Mercenary destroyed. Map ----- +----------------------------------------------------+ | ??# # ## """""#??# # | | ??#""" # ## """""#??# ### | | ??#""" +* ## ==! #?## #################### | | ??#""" #= ######+###### ##### # !! | | ??# #[ % # !! | | ??# ?# [##### " <= # !! | | ??######?#####???# # | | ???????#???????### ##### [% ##### # | | ???????#?#? ? ## #######+######## #######+## | | ???????#?# # "# ! * # ##### | | ########?# # ""# # ! | | ?# # ||# + | | ?? """ ?# < ""# """ """ # | | ?# """ ?# !!# """ """ ######### | | ########?? """??# ""#! """ """ #???????## # | | ??????????? ??# "# #????????# # | | ############+##### #######/########????????# # | | ### ##### #?????????????# # | | #????????????## # | | #????????????# | | #?####???##??# | | [##### # #??# | | ########### *%########### """ """ #??# | | ?????????#T =!!!=+!!** #?# """ """ #??# | | ?????????## =!! #%!%%* #?# """ """ #?####+## | | ??????#####| !! #!=!@ #?# """ """ #?# | | ??????#** #!!= /g/ g #?# | | ??????#** # = !### !g #?# | | ??????#]] #########?# g #?# """ " | | ??????#]] ################+###### """ " | | ??????#! + """ " | | ??????#!! ##### | | ??????##### " T#??# | | ??????????# T """ """ ##??####### | | ??????????# " """"" """"" #?????????? | | #????????## """"" """"" #?????????? | | #???????# ! """"" """"" #####?????? | | #"##?????# """ """ #?????? | | ####### #?????? | | + #?????? | | # ########+#####"T"#####+######?????? | | # ######+###### !!!#"""# #??????? | | + + # !!!##### #??????? | | # # """ # !!!#???# #??????? | | # # """"" # #???# """ #??????? | | # + """"" " " " """ #???# """"" #??????? | | #### """"" # "R" """ #???# """"" #??????? | | ###???# """ # """ """ #???# """"" #??????? | | ??????# ! # #???# """ #??????? | | ??????#####################?#??????????####??????? | +----------------------------------------------------+ Best States ------------- Heat Dissipation 25 Energy Generation 10 Energy Capacity 250 Matter Stores 300 Matter Capacity 300 Sight Range 16 Terrain Scan Density 10 Evasion (%) 50 Targeting Accuracy 6 Recoil Reduction 2 Item Schematics ----------------- None Robot Schematics ------------------ None Fabricated ------------ Nothing Repaired ---------- Nothing Studied --------- None Alien Tech Used ----------------- None Achievements -------------- None Challenges ------------ None Game ------ Seed MultireflexTechInterrupter Manual? 0 Play Time 00:12:07 Cumulative 18.5 hours Start 2025.10.24 @ 18:33:52 End 2025.10.24 @ 18:43:42 Sessions 1 Manual Loads 0 Difficulty Rogue Special Mode None Game No. 10 Rogue 10 Adventurer 0 Explorer 0 Win Type - Total 0 Types 0/0/0/0/0/0/0/0/0/0 Lore% 38 Gallery% 32 Achievement% 35 Wizard Run 0 Options --------- Layout 0 ASCII 0 Keyboard 0 Movement Mouse Keybinds 0 Fullscreen 1 Font 24/Smallcaps Map View 183x50 Zoom Use 0% Tactical HUD 1 Map Filters NONE Filters NONE Steam 1 RUN: 25f4a7be-48b6-4359-ba9c-af9d5c38b1a5